bitfinex/quotes_SOLUSD_20230105
["timestamp","ask_amount","ask_price","bid_price","bid_amount"]
[1672880998630,78.12582747,13.113,13.105,7.7483753]
[1672880998935,78.12582747,13.112,13.105,7.7483753]
[1672880999136,20.0,13.111,13.105,7.7483753]
[1672880999452,20.0,13.11,13.105,7.7483753]
[1672880999672,140.58446517,13.11,13.105,7.7483753]
[1672881000100,64.2398213,13.11,13.105,7.7483753]
[1672881000300,21.7811836,13.11,13.105,7.7483753]
[1672881000514,30.0,13.117,13.105,7.7483753]
[1672881000830,78.12582747,13.116,13.105,7.7483753]
[1672881001045,57.22,13.115,13.105,7.7483753]
[1672881001265,20.0,13.114,13.105,7.7483753]
[1672881001460,140.58446517,13.114,13.105,7.7483753]
[1672881001655,42.4586377,13.113,13.105,7.7483753]
[1672881001882,120.58446517,13.113,13.105,7.7483753]
[1672881002119,20.0,13.111,13.105,7.7483753]
[1672881002500,120.58446517,13.11,13.105,7.7483753]
[1672881002711,170.58446517,13.11,13.105,7.7483753]
[1672881003150,106.34464387,13.11,13.109,410.8543768]
[1672881003354,56.34464387,13.11,13.109,410.8543768]
[1672881003774,78.12582747,13.11,13.109,410.8543768]
[1672881004389,21.7811836,13.11,13.109,410.8543768]
[1672881005469,78.12582747,13.11,13.109,410.8543768]
[1672881006301,247.82446517,13.11,13.109,354.6345768]
[1672881006500,290.80805821,13.11,13.109,354.6345768]
[1672881007128,290.80805821,13.11,13.109,295.67374789]
[1672881007763,270.80805821,13.11,13.109,295.67374789]
[1672881008183,171.10942051,13.11,13.109,295.67374789]
[1672881008386,92.98359304,13.11,13.109,295.67374789]
[1672881009029,113.603,13.123,13.109,295.67374789]
[1672881009252,21.7811836,13.114,13.109,295.67374789]
[1672881009782,57.18,13.124,13.11,20.0]
[1672881010188,21.7811836,13.123,13.111,57.24]
[1672881010381,57.16,13.13,13.111,57.24]
[1672881010382,57.16,13.13,13.111,177.0915]
[1672881010725,21.7811836,13.129,13.111,177.0915]
[1672881011027,20.0,13.128,13.112,20.0]
[1672881011361,57.15,13.132,13.112,315.67374787]
[1672881011362,21.7811836,13.127,13.112,315.67374787]
[1672881012110,20.0,13.126,13.112,315.67374787]
[1672881012436,21.7811836,13.125,13.113,57.23]
[1672881012620,20.0,13.124,13.113,57.23]
[1672881012832,20.0,13.124,13.114,20.0]
[1672881013152,21.7811836,13.123,13.114,315.67374787]
[1672881013817,20.0,13.124,13.114,315.67374787]
[1672881014002,20.0,13.131,13.116,20.0]
[1672881014325,21.7811836,13.128,13.117,115.0467]
[1672881014514,20.0,13.127,13.118,20.0]
[1672881014729,57.14,13.135,13.118,20.0]
[1672881014929,21.7811836,13.134,13.12,20.0]
[1672881015146,80.13991374,13.133,13.121,57.2]
[1672881015776,58.35873014,13.133,13.121,57.2]
[1672881016001,21.7811836,13.132,13.12,295.67374787]
[1672881017033,97.15,13.131,13.12,295.67374787]
[1672881017371,21.7811836,13.13,13.12,295.67374787]
[1672881017567,77.16,13.129,13.12,295.67374787]
[1672881017778,123.47159304,13.129,13.12,295.67374787]
[1672881018006,21.7811836,13.128,13.12,295.67374787]
[1672881018202,20.0,13.127,13.12,295.67374787]
[1672881018608,21.7811836,13.126,13.12,258.71452938]
[1672881019031,20.0,13.125,13.12,258.71452938]
[1672881019491,21.7811836,13.124,13.12,258.71452938]
[1672881019975,120.88804578,13.124,13.12,258.71452938]
[1672881020185,21.7811836,13.123,13.12,258.71452938]
[1672881020400,99.26977018,13.124,13.12,258.71452938]
[1672881020623,55.2331587,13.122,13.12,258.71452938]
[1672881021052,244.49472146,13.121,13.12,258.71452938]
[1672881021245,244.49472146,13.121,13.12,254.97512938]
[1672881021473,3.7394,13.118,13.106,109.2198]
[1672881022101,172.52788016,13.117,13.106,109.2198]
[1672881022306,20.0,13.116,13.106,109.2198]
[1672881022516,20.0,13.115,13.106,109.2198]
[1672881022836,20.0,13.114,13.106,109.2198]
[1672881023140,143.11362045,13.114,13.106,109.2198]
[1672881023359,77.0143423,13.113,13.105,61.6527016]
[1672881023769,21.7811836,13.112,13.105,61.6527016]
[1672881026082,125.03762045,13.112,13.105,61.6527016]
[1672881026507,20.0,13.11,13.105,61.6527016]
[1672881026720,21.7811836,13.111,13.105,61.6527016]
[1672881026924,134.57962045,13.109,13.105,61.6527016]
[1672881027335,86.5563423,13.108,13.105,61.6527016]
[1672881027758,21.7811836,13.108,13.105,61.6527016]
[1672881027981,48.02327815,13.109,13.105,61.6527016]
[1672881028404,112.79843685,13.109,13.105,61.6527016]
[1672881029040,134.57962045,13.109,13.105,61.6527016]
[1672881029255,20.0,13.107,13.105,61.6527016]
[1672881029443,20.0,13.106,13.105,61.6527016]
[1672881029646,238.83819747,13.106,13.105,61.6527016]
[1672881029858,288.25245718,13.106,13.105,61.6527016]
[1672881030393,236.47127358,13.106,13.105,61.6527016]
[1672881030834,258.25245718,13.106,13.105,61.6527016]
[1672881031222,288.25245718,13.106,13.105,61.6527016]
[1672881032065,217.05701387,13.106,13.105,61.6527016]
[1672881032264,238.83819747,13.106,13.105,61.6527016]
[1672881032712,61.65,13.105,13.098,35.4867431]
[1672881032941,20.0,13.104,13.098,35.4867431]
[1672881033117,20.0,13.103,13.098,35.4867431]
[1672881033328,159.18253787,13.103,13.098,35.4867431]
[1672881033540,51.48994481,13.102,13.098,35.4867431]
[1672881033769,20.0,13.101,13.098,35.4867431]
[1672881034111,20.0,13.101,13.087,82.1261032]
[1672881034112,35.4867431,13.097,13.087,82.1261032]
[1672881034390,57.31,13.096,13.087,82.1261032]
[1672881034599,20.0,13.095,13.087,82.1261032]
[1672881034810,67.26613971,13.095,13.087,82.1261032]
[1672881035029,89.04732331,13.095,13.087,82.1261032]
[1672881035250,21.7811836,13.094,13.087,82.1261032]
[1672881035756,54.6947679,13.093,13.087,82.1261032]
[1672881035981,101.95709427,13.093,13.087,82.1261032]
[1672881036168,21.7811836,13.092,13.087,82.1261032]
[1672881036374,20.0,13.091,13.087,82.1261032]
[1672881036796,21.7811836,13.09,13.087,82.1261032]
[1672881037006,20.0,13.089,13.087,82.1261032]
[1672881037229,47.22179371,13.089,13.087,82.1261032]
[1672881037569,21.7811836,13.088,13.087,82.1261032]
[1672881038284,84.52601731,13.088,13.087,82.1261032]
[1672881038488,131.74579035,13.088,13.087,82.1261032]
[1672881038688,109.96460675,13.088,13.087,82.1261032]
[1672881038912,84.52601731,13.088,13.087,82.1261032]
[1672881039981,134.52601731,13.088,13.087,82.1261032]
[1672881040891,175.50875183,13.088,13.087,82.1261032]
[1672881045523,153.72756823,13.088,13.087,82.1261032]
[1672881045744,70.98273452,13.088,13.087,82.1261032]
[1672881045961,51.7811836,13.088,13.087,82.1261032]
[1672881046484,30.0,13.088,13.087,82.1261032]
[1672881046882,21.7811836,13.088,13.087,82.1261032]
[1672881047318,51.7811836,13.088,13.087,82.1261032]
[1672881047562,95.02591812,13.088,13.087,82.1261032]
[1672881048068,177.76243183,13.088,13.087,82.1261032]
[1672881048253,93.24473452,13.088,13.087,82.1261032]
[1672881048892,115.02591812,13.088,13.087,82.1261032]
[1672881049864,115.02591812,13.088,13.087,2.36448217]
[1672881051409,177.76243183,13.088,13.087,2.36448217]
[1672881051621,235.10243183,13.088,13.087,2.36448217]
[1672881052677,20.0,13.087,13.078,19.7838694]
[1672881052878,20.0,13.084,13.078,19.7838694]
[1672881053421,21.7811836,13.084,13.078,19.7838694]
[1672881053839,30.0,13.083,13.078,19.7838694]
[1672881054267,21.7811836,13.082,13.078,19.7838694]
[1672881054681,84.51769731,13.082,13.078,19.7838694]
[1672881054893,30.0,13.083,13.078,19.7838694]
[1672881055412,21.7811836,13.088,13.079,77.38]
[1672881055848,43.24473452,13.096,13.079,57.38]
[1672881056024,21.7811836,13.094,13.079,57.38]
[1672881056242,21.7811836,13.094,13.08,20.0]
[1672881056450,20.0,13.093,13.081,57.37]
[1672881056667,20.0,13.093,13.079,57.38]
[1672881056869,21.7811836,13.092,13.079,57.38]
[1672881057121,20.0,13.091,13.078,19.7838694]
[1672881057515,21.7811836,13.09,13.078,19.7838694]
[1672881057723,20.0,13.088,13.078,19.7838694]
[1672881057938,57.34,13.087,13.078,19.7838694]
[1672881058130,20.0,13.086,13.078,19.7838694]
[1672881058343,41.7811836,13.086,13.078,19.7838694]
[1672881058670,21.7811836,13.085,13.078,19.7838694]
[1672881058877,20.0,13.084,13.078,19.7838694]
[1672881059091,82.73651371,13.084,13.078,19.7838694]
[1672881059315,104.51769731,13.083,13.078,19.7838694]
[1672881059704,20.0,13.081,13.078,19.7838694]
[1672881060250,62.73651371,13.08,13.078,19.7838694]
[1672881060658,84.51769731,13.08,13.078,19.7838694]
[1672881061068,62.73651371,13.079,13.078,19.7838694]
[1672881061495,65.35940119,13.083,13.078,19.7838694]
[1672881061835,45.35940119,13.083,13.078,19.7838694]
[1672881062039,20.0,13.084,13.078,19.7838694]
[1672881062247,65.35940119,13.086,13.078,19.7838694]
[1672881062441,20.0,13.085,13.078,19.7838694]
[1672881064857,45.35940119,13.087,13.078,19.7838694]
[1672881065079,129.5039,13.098,13.078,19.7838694]
[1672881065297,21.7811836,13.092,13.079,77.38]
[1672881065692,57.3,13.097,13.079,77.38]
[1672881065896,79.0811836,13.097,13.08,112.1453]
[1672881066360,41.7811836,13.096,13.08,112.1453]
[1672881066557,57.31,13.095,13.079,57.38]
[1672881066743,20.0,13.094,13.078,19.7838694]
[1672881066947,20.0,13.092,13.078,19.7838694]
[1672881067166,77.33,13.091,13.078,19.7838694]
[1672881067389,20.0,13.09,13.078,19.7838694]
[1672881067604,77.34,13.089,13.078,19.7838694]
[1672881067801,156.42053279,13.089,13.078,19.7838694]
[1672881068009,156.42053279,13.089,13.079,0.38229]
[1672881068010,21.7811836,13.088,13.079,0.38229]
[1672881068216,77.34,13.087,13.079,0.38229]
[1672881068741,21.7811836,13.086,13.079,0.38229]
[1672881068946,20.0,13.085,13.079,0.38229]
[1672881069215,57.33,13.091,13.079,0.38229]
[1672881069393,21.7811836,13.089,13.079,0.38229]
[1672881069595,79.08053279,13.089,13.079,0.38229]
[1672881070314,21.7811836,13.089,13.079,0.38229]
[1672881070739,21.7811836,13.089,13.079,77.76229]
[1672881070946,57.31,13.096,13.079,77.76229]
[1672881071167,21.7811836,13.094,13.079,77.76229]
[1672881073885,96.22685975,13.093,13.079,0.38229]
[1672881074116,40.0,13.092,13.079,0.38229]
[1672881074411,20.0,13.09,13.079,0.38229]
[1672881074636,77.34,13.089,13.079,0.38229]
[1672881074954,138.02804335,13.089,13.079,0.38229]
[1672881075143,60.68804335,13.088,13.079,0.38229]
[1672881075378,77.34,13.087,13.079,0.38229]
[1672881075580,99.1211836,13.087,13.079,0.38229]
[1672881075913,21.7811836,13.086,13.079,0.38229]
[1672881076136,20.0,13.085,13.079,0.38229]
[1672881076446,79.1411836,13.084,13.079,0.38229]
[1672881076942,21.7811836,13.083,13.079,0.38229]
[1672881077895,20.0,13.103,13.08,20.0]
[1672881078101,115.8523,13.102,13.08,139.9449]
[1672881078333,20.0,13.093,13.08,139.9449]
[1672881078529,20.0,13.091,13.08,119.9449]
[1672881078743,57.33,13.09,13.079,0.38229]
[1672881078975,20.0,13.089,13.079,0.38229]
[1672881079161,57.34,13.088,13.079,0.38229]
[1672881079490,98.64752642,13.088,13.079,0.38229]
[1672881079679,20.0,13.086,13.079,0.38229]
[1672881079888,77.35,13.085,13.079,0.38229]
[1672881080101,20.0,13.084,13.079,0.38229]
[1672881080324,57.36,13.083,13.079,0.38229]
[1672881080538,98.66752642,13.083,13.079,0.38229]
[1672881080851,21.7811836,13.082,13.079,0.38229]
[1672881081048,57.37,13.081,13.079,0.38229]
[1672881081259,79.1511836,13.082,13.079,0.38229]
[1672881081884,20.0,13.081,13.078,0.0038694]
[1672881082107,1.14687,13.079,13.078,0.0038694]
[1672881082332,1.14687,13.079,13.063,112.8387]
[1672881082333,20.0,13.078,13.063,112.8387]
[1672881082510,20.0,13.076,13.063,112.8387]
[1672881082726,77.4,13.075,13.063,112.8387]
[1672881082927,135.86401591,13.075,13.063,112.8387]
[1672881083247,20.0,13.073,13.063,112.8387]
[1672881083461,57.41,13.072,13.062,116.5556]
[1672881083776,160.08303819,13.072,13.062,116.5556]
[1672881083993,182.9182377,13.071,13.062,116.5556]
[1672881084522,50.55720515,13.07,13.062,116.5556]
[1672881085359,50.55720515,13.07,13.059,77.47]
[1672881087038,57.4,13.074,13.059,77.47]
[1672881087269,20.0,13.075,13.06,20.0]
[1672881087465,46.59740515,13.077,13.061,77.46]
[1672881087701,57.36,13.083,13.061,77.46]
[1672881087884,46.59740515,13.082,13.063,20.0]
[1672881088210,46.59740515,13.082,13.064,57.45]
[1672881088211,21.7811836,13.08,13.064,57.45]
[1672881088524,21.7811836,13.08,13.065,20.0]
[1672881088842,21.7811836,13.08,13.067,20.0]
[1672881089039,57.37,13.081,13.068,57.43]
[1672881089256,46.59740515,13.082,13.069,20.0]
[1672881089448,46.59740515,13.082,13.07,57.42]
[1672881089873,46.59740515,13.082,13.071,20.0]
[1672881090100,46.59740515,13.082,13.07,57.42]
[1672881090312,21.7811836,13.081,13.07,57.42]
[1672881090625,21.7811836,13.081,13.071,114.3174]
[1672881090844,21.7811836,13.081,13.07,57.42]
[1672881091579,21.7811836,13.081,13.07,77.42]
[1672881093258,57.35,13.086,13.07,77.42]
[1672881093259,57.35,13.086,13.071,20.0]
[1672881093451,41.7811836,13.085,13.071,20.0]
[1672881093670,57.36,13.084,13.071,20.0]
[1672881094087,79.1411836,13.084,13.071,20.0]
[1672881094727,21.7811836,13.083,13.071,20.0]
[1672881094927,57.37,13.082,13.071,20.0]
[1672881095155,57.36,13.084,13.071,20.0]
[1672881096084,57.36,13.084,13.072,20.0]
[1672881096409,20.0,13.101,13.074,20.0]
[1672881096601,112.4148,13.096,13.075,57.4]
[1672881096811,20.0,13.094,13.077,20.0]
[1672881097026,57.32,13.093,13.076,111.519]
[1672881097250,20.0,13.092,13.073,110.8889]
[1672881097462,20.0,13.09,13.073,110.8889]
[1672881097672,77.34,13.089,13.073,110.8889]
[1672881097870,20.0,13.088,13.073,110.8889]
[1672881098062,77.34,13.087,13.073,110.8889]
[1672881098272,20.0,13.086,13.073,110.8889]
[1672881098502,57.35,13.085,13.073,110.8889]
[1672881098703,20.0,13.084,13.073,110.8889]
[1672881098926,57.36,13.083,13.073,110.8889]
[1672881099145,79.1411836,13.083,13.073,110.8889]
[1672881099952,21.7811836,13.082,13.073,110.8889]
[1672881100166,57.37,13.081,13.073,110.8889]
[1672881100393,20.0,13.08,13.069,110.4541]
[1672881100590,20.0,13.078,13.062,113.5536]
[1672881100796,77.39,13.077,13.062,113.5536]
[1672881101123,99.1711836,13.077,13.062,113.5536]
[1672881101332,77.39,13.077,13.063,20.0]
[1672881101541,21.7811836,13.076,13.063,77.45]
[1672881101768,77.4,13.075,13.063,77.45]
[1672881101975,21.7811836,13.076,13.063,20.0]
[1672881102184,41.08918769,13.08,13.064,57.45]
[1672881102401,21.7811836,13.079,13.065,20.0]
[1672881102604,57.38,13.078,13.065,20.0]
[1672881102924,21.7811836,13.077,13.065,20.0]
[1672881103334,57.38,13.079,13.065,20.0]
[1672881103573,41.08918769,13.08,13.065,20.0]
[1672881103870,21.7811836,13.079,13.067,20.0]
[1672881104519,41.08918769,13.08,13.067,20.0]
[1672881104915,20.0,13.079,13.066,57.44]
[1672881105133,20.0,13.079,13.064,115.7635]
[1672881105134,57.38,13.078,13.064,115.7635]
[1672881105450,79.1611836,13.078,13.064,115.7635]
[1672881105637,21.7811836,13.077,13.064,115.7635]
[1672881106385,57.39,13.076,13.064,115.7635]
[1672881106801,79.1711836,13.076,13.064,115.7635]
[1672881107007,21.7811836,13.076,13.064,115.7635]
[1672881107236,72.42916527,13.076,13.064,115.7635]
[1672881107553,57.4,13.075,13.064,115.7635]
[1672881107766,77.4,13.075,13.064,115.7635]
[1672881107978,21.7811836,13.074,13.064,115.7635]
[1672881108161,57.41,13.073,13.064,427.7635]
[1672881111113,79.1811836,13.074,13.064,427.7635]
[1672881112058,21.7811836,13.074,13.064,427.7635]
[1672881112290,21.7811836,13.074,13.065,20.0]
[1672881112679,57.38,13.078,13.065,20.0]
[1672881112890,118.2467,13.085,13.066,57.44]
[1672881113120,118.2467,13.085,13.067,20.0]
[1672881113121,79.1411836,13.084,13.067,20.0]
[1672881113629,79.1611836,13.079,13.067,20.0]
[1672881114070,21.7811836,13.078,13.067,20.0]
[1672881114278,57.38,13.079,13.067,20.0]
[1672881114682,57.36,13.084,13.067,20.0]
[1672881115229,98.44918769,13.084,13.067,20.0]
[1672881115424,120.23037129,13.084,13.067,20.0]
[1672881115637,50.64798167,13.083,13.067,20.0]
[1672881115846,57.37,13.082,13.069,20.0]
[1672881116059,57.36,13.084,13.069,134.3466]
[1672881116390,98.44918769,13.084,13.07,116.2237]
[1672881116999,120.23037129,13.084,13.07,116.2237]
[1672881117654,20.0,13.083,13.07,116.2237]
[1672881117862,57.37,13.082,13.07,116.2237]
[1672881118072,79.1511836,13.082,13.07,116.2237]
[1672881118396,57.37,13.082,13.07,116.2237]
[1672881118586,21.7811836,13.082,13.07,116.2237]
[1672881118802,57.37,13.081,13.07,116.2237]
[1672881119543,21.7811836,13.08,13.07,116.2237]
[1672881119755,57.37,13.082,13.07,116.2237]
[1672881119970,79.1511836,13.082,13.07,116.2237]
[1672881120506,57.37,13.082,13.07,116.2237]
[1672881120706,79.1411836,13.083,13.07,116.2237]
[1672881120915,79.1411836,13.083,13.071,20.0]
[1672881120916,57.36,13.083,13.071,20.0]
[1672881121146,57.35,13.086,13.071,20.0]
[1672881121442,20.0,13.085,13.071,20.0]
[1672881121639,57.36,13.084,13.071,20.0]
[1672881124063,21.7811836,13.083,13.071,20.0]
[1672881124270,57.37,13.082,13.071,20.0]
[1672881124729,79.1511836,13.082,13.071,20.0]
[1672881124925,57.36,13.084,13.071,20.0]
[1672881125314,21.7811836,13.082,13.071,20.0]
[1672881125525,57.37,13.081,13.071,20.0]
[1672881126385,21.7811836,13.08,13.071,20.0]
[1672881126598,57.38,13.079,13.071,20.0]
[1672881127451,57.38,13.079,13.07,428.2237]
[1672881127452,57.38,13.079,13.052,59.32258203]
[1672881127682,79.1611836,13.079,13.061,20.0]
[1672881127871,57.38,13.079,13.062,134.221]
[1672881128071,21.7811836,13.08,13.062,134.221]
[1672881128415,79.1611836,13.079,13.064,20.0]
[1672881128599,79.1611836,13.079,13.066,20.0]
[1672881131237,79.1611836,13.079,13.065,114.1797]
[1672881132703,79.1611836,13.079,13.066,20.0]
[1672881134494,57.38,13.079,13.066,20.0]
[1672881134703,57.37,13.082,13.066,77.44]
[1672881135025,102.96585436,13.082,13.066,77.44]
[1672881135420,102.96585436,13.082,13.067,20.0]
[1672881135628,102.96585436,13.082,13.068,57.43]
[1672881135841,102.96585436,13.082,13.07,20.0]
[1672881137303,124.74703796,13.082,13.069,111.1282]
[1672881140474,102.96585436,13.082,13.069,111.1282]
[1672881140681,102.96585436,13.082,13.07,20.0]
[1672881141542,57.36,13.084,13.072,223.5]
[1672881141744,57.31,13.094,13.074,223.5]
[1672881141958,57.31,13.095,13.075,57.4]
[1672881142273,57.31,13.095,13.076,20.0]
[1672881142490,79.0911836,13.095,13.078,20.0]
[1672881142696,79.0911836,13.095,13.079,169.7605]
[1672881143009,57.29,13.1,13.081,20.0]
[1672881143220,21.7811836,13.099,13.082,77.37]
[1672881143433,57.3,13.098,13.083,20.0]
[1672881143648,57.3,13.098,13.085,20.0]
[1672881144573,57.3,13.098,13.086,57.35]
[1672881144784,57.3,13.098,13.087,20.0]
[1672881145013,21.7811836,13.102,13.087,20.0]
[1672881145209,57.28,13.101,13.089,20.0]
[1672881145647,21.7811836,13.1,13.089,20.0]
[1672881145849,57.29,13.099,13.089,20.0]
[1672881147844,57.27,13.103,13.091,20.0]
[1672881148885,57.27,13.103,13.092,20.0]
[1672881149098,119.8376,13.12,13.093,20.0]
[1672881149425,20.0,13.117,13.095,20.0]
[1672881149742,57.22,13.116,13.096,57.31]
[1672881149955,79.0011836,13.116,13.096,57.31]
[1672881150145,20.0,13.115,13.096,57.31]
[1672881150355,57.23,13.114,13.096,57.31]
[1672881150580,20.0,13.113,13.09,20.0]
[1672881150794,20.0,13.111,13.09,20.0]
[1672881150984,77.24,13.11,13.09,20.0]
[1672881151319,20.0,13.109,13.09,20.0]
[1672881151540,77.25,13.108,13.09,20.0]
[1672881151732,20.0,13.107,13.09,20.0]
[1672881151931,77.26,13.106,13.09,20.0]
[1672881152143,99.0411836,13.106,13.09,20.0]
[1672881152370,72.18184013,13.105,13.09,20.0]
[1672881152581,77.27,13.104,13.09,20.0]
[1672881152766,99.0511836,13.104,13.09,332.0]
[1672881152982,21.7811836,13.103,13.09,332.0]
[1672881153191,57.28,13.102,13.09,332.0]
[1672881153621,79.0611836,13.102,13.09,332.0]
[1672881153928,57.27,13.103,13.09,332.0]
[1672881155210,57.27,13.103,13.091,20.0]
[1672881155817,57.27,13.103,13.091,77.33]
[1672881156027,57.27,13.103,13.091,20.0]
[1672881157503,57.26,13.106,13.093,20.0]
[1672881159312,79.0411836,13.106,13.093,20.0]
[1672881160121,79.0411836,13.106,13.093,332.0]
[1672881161195,79.0411836,13.106,13.093,20.0]
[1672881165515,21.7811836,13.106,13.093,20.0]
[1672881165727,79.0411836,13.106,13.093,20.0]
[1672881166354,45.9888,13.125,13.093,243.5]
[1672881166670,41.7811836,13.117,13.094,219.3459719]
[1672881167076,79.0011836,13.116,13.095,20.0]
[1672881167286,20.0,13.114,13.097,20.0]
[1672881167528,57.23,13.113,13.097,20.0]
[1672881167704,79.0111836,13.113,13.097,20.0]
[1672881168138,20.0,13.111,13.097,20.0]
[1672881168340,57.24,13.11,13.097,20.0]
[1672881168552,57.24,13.111,13.097,20.0]
[1672881169191,57.23,13.114,13.099,20.0]
[1672881169386,57.23,13.114,13.099,332.0]
[1672881169596,57.23,13.114,13.1,20.0]
[1672881169812,57.23,13.114,13.1,77.29]
[1672881170125,57.23,13.114,13.1,99.0711836]
[1672881170342,57.23,13.114,13.101,20.0]
[1672881170551,20.0,13.124,13.102,77.28]
[1672881170552,170.6225,13.123,13.102,77.28]
[1672881170755,21.7811836,13.118,13.103,20.0]
[1672881170962,57.18,13.124,13.103,20.0]
[1672881171173,57.18,13.124,13.105,20.0]
[1672881171401,21.7811836,13.124,13.106,57.26]
[1672881171612,167.2683,13.123,13.106,79.0411836]
[1672881171813,167.2683,13.123,13.107,20.0]
[1672881172137,167.2683,13.123,13.109,20.0]
[1672881173409,167.2683,13.123,13.109,332.0]
[1672881173623,57.19,13.123,13.109,332.0]
[1672881173829,57.18,13.124,13.109,353.7811836]
[1672881174147,57.18,13.124,13.11,20.0]
[1672881174336,57.18,13.124,13.111,57.24]
[1672881174541,57.18,13.124,13.11,77.24]
[1672881175084,110.0783,13.131,13.11,77.24]
[1672881175085,57.17,13.128,13.111,20.0]
[1672881175295,57.16,13.13,13.112,77.24]
[1672881175503,57.16,13.13,13.112,99.0211836]
[1672881175717,57.16,13.13,13.114,20.0]
[1672881175928,57.16,13.13,13.115,57.22]
[1672881176141,57.16,13.13,13.116,20.0]
[1672881176333,57.16,13.13,13.118,20.0]
[1672881177076,167.2283,13.131,13.118,20.0]
[1672881177502,167.2283,13.131,13.117,57.21]
[1672881177718,167.2283,13.131,13.118,42.71842095]
[1672881177909,167.2283,13.131,13.117,43.34720251]
[1672881178254,21.7811836,13.13,13.116,20.0]
[1672881178437,57.16,13.129,13.116,20.0]
[1672881178853,57.16,13.13,13.116,20.0]
[1672881179279,57.16,13.13,13.116,41.7811836]
[1672881180232,57.16,13.13,13.116,20.0]
[1672881180989,57.16,13.13,13.118,20.0]
[1672881181583,167.2283,13.131,13.118,20.0]
[1672881182632,167.2283,13.131,13.118,41.7811836]
[1672881182854,167.2283,13.131,13.118,21.7811836]
[1672881183054,167.2283,13.131,13.116,20.0]
[1672881183055,20.0,13.129,13.116,20.0]
[1672881183261,57.17,13.128,13.116,20.0]
[1672881184126,57.17,13.128,13.113,20.0]
[1672881184341,78.9511836,13.128,13.114,57.23]
[1672881184745,78.9511836,13.128,13.115,20.0]
[1672881185799,57.16,13.13,13.115,20.0]
[1672881186442,78.9411836,13.13,13.115,20.0]
[1672881187492,57.16,13.13,13.117,20.0]
[1672881187710,167.2283,13.131,13.119,20.0]
[1672881188233,57.15,13.131,13.12,39.46]
[1672881188424,57.12,13.138,13.121,57.2]
[1672881188633,57.12,13.138,13.122,20.0]
[1672881189077,57.12,13.138,13.123,77.19]
[1672881189997,78.9011836,13.138,13.123,77.19]
[1672881190540,93.2768,13.139,13.124,20.0]
[1672881190734,57.12,13.138,13.126,20.0]
[1672881191155,93.2768,13.139,13.128,20.0]
[1672881191370,93.2768,13.139,13.129,57.16]
[1672881191580,93.2768,13.139,13.13,20.0]
[1672881193064,93.2768,13.139,13.13,332.0]
[1672881194943,93.2768,13.139,13.127,57.17]
[1672881195564,93.2768,13.139,13.126,77.17]
[1672881195779,93.2768,13.139,13.126,57.17]
[1672881196019,57.12,13.138,13.123,77.19]
[1672881196195,78.9011836,13.138,13.123,77.19]
[1672881196617,78.9011836,13.138,13.123,57.19]
[1672881196833,41.7811836,13.137,13.118,223.4878]
[1672881197043,77.13,13.136,13.118,223.4878]
[1672881197364,77.13,13.136,13.118,111.3108]
[1672881197782,112.5598,13.135,13.118,111.3108]
[1672881198096,57.14,13.134,13.12,39.46]
[1672881198305,191.4609836,13.138,13.121,57.2]
[1672881198515,191.4609836,13.138,13.122,20.0]
[1672881199141,191.4609836,13.138,13.123,20.0]
[1672881199353,21.7811836,13.137,13.123,20.0]
[1672881199573,57.13,13.136,13.123,20.0]